Workbook

Sheet Data
A1: eV | B1: λ (nm) | C1: R (%) | D1: Phase
A2: 25 | B2: =(1.23984193*1000)/A2 -> 49.5936772 | C2: 5.204 | D2: 179.79895
A3: 25.05 | B3: =(1.23984193*1000)/A3 -> 49.49468782 | C3: 5.1746 | D3: 179.224009
A4: 25.1 | B4: 49.39609283 | C4: 5.127 | D4: 178.882809
A5: 25.15 | B5: 49.29788986 | C5: 5.0652 | D5: 178.726629
A6: 25.2 | B6: 49.20007659 | C6: 4.9925 | D6: 178.709164
A7: 25.25 | B7: 49.10265069 | C7: 4.9125 | D7: 178.78589
A8: 25.3 | B8: 49.00560988 | C8: 4.8283 | D8: 178.91332
A9: 25.35 | B9: 48.90895187 | C9: 4.7435 | D9: 179.048108
A10: 25.4 | B10: 48.81267441 | C10: 4.6616 | D10: 179.146206
A11: 25.45 | B11: 48.71677525 | C11: 4.5855 | D11: 179.17217
A12: 25.5 | B12: 48.62125216 | C12: 4.5153 | D12: 179.12892
A13: 25.55 | B13: 48.52610294 | C13: 4.45 | D13: 179.029348
A14: 25.6 | B14: 48.43132539 | C14: 4.3885 | D14: 178.886628
A15: 25.65 | B15: 48.33691735 | C15: 4.3302 | D15: 178.714166
A16: 25.7 | B16: 48.24287665 | C16: 4.2738 | D16: 178.525556
A17: 25.75 | B17: 48.14920117 | C17: 4.2187 | D17: 178.334554
A18: 25.8 | B18: 48.05588876 | C18: 4.1637 | D18: 178.155058
A19: 25.85 | B19: 47.96293733 | C19: 4.1083 | D19: 177.999633
A20: 25.9 | B20: 47.87034479 | C20: 4.0522 | D20: 177.869876
A21: 25.95 | B21: 47.77810906 | C21: 3.9959 | D21: 177.762119
A22: 26 | B22: 47.68622808 | C22: 3.9398 | D22: 177.672457
A23: 26.05 | B23: 47.59469981 | C23: 3.884 | D23: 177.596751
A24: 26.1 | B24: 47.50352222 | C24: 3.8291 | D24: 177.530623
A25: 26.15 | B25: 47.41269331 | C25: 3.7751 | D25: 177.46948
A26: 26.2 | B26: 47.32221107 | C26: 3.7225 | D26: 177.408565
A27: 26.25 | B27: 47.23207352 | C27: 3.6715 | D27: 177.343223
A28: 26.3 | B28: 47.14227871 | C28: 3.622 | D28: 177.271264
A29: 26.35 | B29: 47.05282467 | C29: 3.5741 | D29: 177.193179
A30: 26.4 | B30: 46.96370947 | C30: 3.5276 | D30: 177.109627
A31: 26.45 | B31: 46.87493119 | C31: 3.4824 | D31: 177.021301
A32: 26.5 | B32: 46.78648792 | C32: 3.4383 | D32: 176.928953
A33: 26.55 | B33: 46.69837778 | C33: 3.3953 | D33: 176.833435
A34: 26.6 | B34: 46.61059887 | C34: 3.353 | D34: 176.735724
A35: 26.65 | B35: 46.52314934 | C35: 3.3113 | D35: 176.636923
A36: 26.7 | B36: 46.43602734 | C36: 3.2702 | D36: 176.537747
A37: 26.75 | B37: 46.34923103 | C37: 3.2293 | D37: 176.437784
A38: 26.8 | B38: 46.26275858 | C38: 3.1888 | D38: 176.33649
A39: 26.85 | B39: 46.17660819 | C39: 3.1484 | D39: 176.233517
A40: 26.9 | B40: 46.09077807 | C40: 3.1082 | D40: 176.128681
A41: 26.95 | B41: 46.00526642 | C41: 3.0681 | D41: 176.021925
A42: 27 | B42: 45.92007148 | C42: 3.0281 | D42: 175.913275
A43: 27.05 | B43: 45.8351915 | C43: 2.9882 | D43: 175.802795
A44: 27.1 | B44: 45.75062472 | C44: 2.9485 | D44: 175.690605
A45: 27.15 | B45: 45.66636943 | C45: 2.909 | D45: 175.577406
A46: 27.2 | B46: 45.5824239 | C46: 2.8696 | D46: 175.464665
A47: 27.25 | B47: 45.49878642 | C47: 2.8303 | D47: 175.353879
A48: 27.3 | B48: 45.41545531 | C48: 2.7912 | D48: 175.246488
A49: 27.35 | B49: 45.33242888 | C49: 2.7524 | D49: 175.143835
A50: 27.4 | B50: 45.24970547 | C50: 2.7137 | D50: 175.047134
A51: 27.45 | B51: 45.16728342 | C51: 2.6755 | D51: 174.957433
A52: 27.5 | B52: 45.08516109 | C52: 2.6375 | D52: 174.875573
A53: 27.55 | B53: 45.00333684 | C53: 2.6001 | D53: 174.80218
A54: 27.6 | B54: 44.92180906 | C54: 2.5633 | D54: 174.737298
A55: 27.65 | B55: 44.84057613 | C55: 2.5273 | D55: 174.680329
A56: 27.7 | B56: 44.75963646 | C56: 2.4923 | D56: 174.630311
A57: 27.75 | B57: 44.67898847 | C57: 2.4583 | D57: 174.585947
A58: 27.8 | B58: 44.59863058 | C58: 2.4256 | D58: 174.545649
A59: 27.85 | B59: 44.51856122 | C59: 2.3941 | D59: 174.507604
A60: 27.9 | B60: 44.43877885 | C60: 2.3639 | D60: 174.469856
A61: 27.95 | B61: 44.35928193 | C61: 2.335 | D61: 174.430396
A62: 28 | B62: 44.28006893 | C62: 2.3072 | D62: 174.387082
A63: 28.05 | B63: 44.20113832 | C63: 2.2805 | D63: 174.337732
A64: 28.1 | B64: 44.12248861 | C64: 2.2546 | D64: 174.280361
A65: 28.15 | B65: 44.04411829 | C65: 2.2292 | D65: 174.213239
A66: 28.2 | B66: 43.96602589 | C66: 2.2041 | D66: 174.134964
A67: 28.25 | B67: =(1.23984193*1000)/A67 -> 43.88820991 | C67: 2.1792 | D67: 174.04451
A68: 28.3 | B68: 43.8106689 | C68: 2.154 | D68: 173.941292
A69: 28.35 | B69: 43.73340141 | C69: 2.1284 | D69: 173.825205
A70: 28.4 | B70: 43.65640599 | C70: 2.102 | D70: 173.696702
A71: 28.45 | B71: 43.5796812 | C71: 2.0749 | D71: 173.557626
A72: 28.5 | B72: 43.50322561 | C72: 2.047 | D72: 173.411207
A73: 28.55 | B73: 43.42703783 | C73: 2.0185 | D73: 173.261268
A74: 28.6 | B74: 43.35111643 | C74: 1.9896 | D74: 173.112078
A75: 28.65 | B75: 43.27546003 | C75: 1.9604 | D75: 172.968114
A76: 28.7 | B76: 43.20006725 | C76: 1.9313 | D76: 172.83379
A77: 28.75 | B77: 43.1249367 | C77: 1.9025 | D77: 172.713192
A78: 28.8 | B78: 43.05006701 | C78: 1.8745 | D78: 172.609842
A79: 28.85 | B79: 42.97545685 | C79: 1.8477 | D79: 172.526494
A80: 28.9 | B80: 42.90110484 | C80: 1.8222 | D80: 172.463924
A81: 28.95 | B81: 42.82700967 | C81: 1.7978 | D81: 172.420934
A82: 29 | B82: 42.75317 | C82: 1.7744 | D82: 172.396485
A83: 29.05 | B83: 42.67958451 | C83: 1.7518 | D83: 172.389548
A84: 29.1 | B84: 42.60625189 | C84: 1.7297 | D84: 172.399124
A85: 29.15 | B85: 42.53317084 | C85: 1.708 | D85: 172.424248
A86: 29.2 | B86: 42.46034007 | C86: 1.6865 | D86: 172.463934
A87: 29.25 | B87: 42.38775829 | C87: 1.665 | D87: 172.517062
A88: 29.3 | B88: 42.31542423 | C88: 1.6434 | D88: 172.582204
A89: 29.35 | B89: 42.24333663 | C89: 1.6218 | D89: 172.657666
A90: 29.4 | B90: 42.17149422 | C90: 1.6004 | D90: 172.74175
A91: 29.45 | B91: 42.09989576 | C91: 1.5796 | D91: 172.830943
A92: 29.5 | B92: 42.02854 | C92: 1.5596 | D92: 172.920407
A93: 29.55 | B93: 41.95742572 | C93: 1.5406 | D93: 173.004475
A94: 29.6 | B94: 41.88655169 | C94: 1.5228 | D94: 173.077091
A95: 29.65 | B95: 41.81591669 | C95: 1.506 | D95: 173.132347
A96: 29.7 | B96: 41.74551953 | C96: 1.4902 | D96: 173.165047
A97: 29.75 | B97: 41.67535899 | C97: 1.4752 | D97: 173.171223
A98: 29.8 | B98: 41.60543389 | C98: 1.4608 | D98: 173.148509
A99: 29.85 | B99: 41.53574305 | C99: 1.4467 | D99: 173.095575
A100: 29.9 | B100: 41.46628528 | C100: 1.4325 | D100: 173.012386
A101: 29.95 | B101: 41.39705943 | C101: 1.4178 | D101: 172.900692
A102: 30 | B102: 41.32806433 | C102: 1.4024 | D102: 172.763651
A103: 30.05 | B103: 41.25929884 | C103: 1.386 | D103: 172.605801
A104: 30.1 | B104: 41.19076179 | C104: 1.3684 | D104: 172.432995
A105: 30.15 | B105: 41.12245207 | C105: 1.3495 | D105: 172.252301
A106: 30.2 | B106: 41.05436854 | C106: 1.329 | D106: 172.071843
A107: 30.25 | B107: 40.98651008 | C107: 1.3072 | D107: 171.900588
A108: 30.3 | B108: 40.91887558 | C108: 1.2839 | D108: 171.748144
A109: 30.35 | B109: 40.85146392 | C109: 1.2596 | D109: 171.624383
A110: 30.4 | B110: 40.78427401 | C110: 1.2344 | D110: 171.537246
A111: 30.45 | B111: 40.71730476 | C111: 1.2087 | D111: 171.49299
A112: 30.5 | B112: 40.65055508 | C112: 1.1829 | D112: 171.496202
A113: 30.55 | B113: 40.5840239 | C113: 1.1574 | D113: 171.549464
A114: 30.6 | B114: 40.51771013 | C114: 1.1326 | D114: 171.653114
A115: 30.65 | B115: 40.45161272 | C115: 1.1089 | D115: 171.805147
A116: 30.7 | B116: 40.38573062 | C116: 1.0865 | D116: 172.001245
A117: 30.75 | B117: 40.32006276 | C117: 1.0658 | D117: 172.234971
A118: 30.8 | B118: 40.25460812 | C118: 1.0468 | D118: 172.498072
A119: 30.85 | B119: 40.18936564 | C119: 1.0297 | D119: 172.781418
A120: 30.9 | B120: 40.1243343 | C120: 1.0146 | D120: 173.076303
A121: 30.95 | B121: 40.05951309 | C121: 1.0014 | D121: 173.373693
A122: 31 | B122: 39.99490097 | C122: 0.9899 | D122: 173.664397
A123: 31.05 | B123: 39.93049694 | C123: 0.9802 | D123: 173.939474
A124: 31.1 | B124: 39.8663 | C124: 0.9719 | D124: 174.190617
A125: 31.15 | B125: 39.80230915 | C125: 0.9648 | D125: 174.410498
A126: 31.2 | B126: 39.7385234 | C126: 0.9586 | D126: 174.593057
A127: 31.25 | B127: 39.67494176 | C127: 0.9532 | D127: 174.733717
A128: 31.3 | B128: 39.61156326 | C128: 0.948 | D128: 174.829554
A129: 31.35 | B129: 39.54838692 | C129: 0.9429 | D129: 174.879405
A130: 31.4 | B130: 39.48541178 | C130: 0.9375 | D130: 174.883973
A131: 31.45 | B131: =(1.23984193*1000)/A131 -> 39.42263688 | C131: 0.9315 | D131: 174.845887
A132: 31.5 | B132: 39.36006127 | C132: 0.9246 | D132: 174.769681
A133: 31.55 | B133: 39.29768399 | C133: 0.9167 | D133: 174.661689
A134: 31.6 | B134: 39.23550411 | C134: 0.9076 | D134: 174.529897
A135: 31.65 | B135: 39.1735207 | C135: 0.897 | D135: 174.383725
A136: 31.7 | B136: 39.11173281 | C136: 0.885 | D136: 174.23377
A137: 31.75 | B137: 39.05013953 | C137: 0.8716 | D137: 174.091485
A138: 31.8 | B138: 38.98873994 | C138: 0.8569 | D138: 173.968793
A139: 31.85 | B139: 38.92753312 | C139: 0.8411 | D139: 173.877285
A140: 31.9 | B140: 38.86651818 | C140: 0.8243 | D140: 173.826814
A141: 31.95 | B141: 38.80569421 | C141: 0.8069 | D141: 173.825672
A142: 32 | B142: 38.74506031 | C142: 0.7893 | D142: 173.880318
A143: 32.05 | B143: 38.6846156 | C143: 0.7716 | D143: 173.994958
A144: 32.1 | B144: 38.62435919 | C144: 0.7544 | D144: 174.171214
A145: 32.15 | B145: 38.5642902 | C145: 0.7378 | D145: 174.407922
A146: 32.2 | B146: 38.50440776 | C146: 0.7222 | D146: 174.701093
A147: 32.25 | B147: 38.44471101 | C147: 0.7079 | D147: 175.044051
A148: 32.3 | B148: 38.38519907 | C148: 0.6949 | D148: 175.427761
A149: 32.35 | B149: 38.3258711 | C149: 0.6834 | D149: 175.841467
A150: 32.4 | B150: 38.26672623 | C150: 0.6734 | D150: 176.274261
A151: 32.45 | B151: 38.20776364 | C151: 0.665 | D151: 176.715227
A152: 32.5 | B152: 38.14898246 | C152: 0.6579 | D152: 177.153514
A153: 32.55 | B153: 38.09038187 | C153: 0.6522 | D153: 177.578849
A154: 32.6 | B154: 38.03196104 | C154: 0.6476 | D154: 177.981979
A155: 32.65 | B155: 37.97371914 | C155: 0.6441 | D155: 178.355026
A156: 32.7 | B156: 37.91565535 | C156: 0.6412 | D156: 178.691732
A157: 32.75 | B157: 37.85776885 | C157: 0.639 | D157: 178.987596
A158: 32.8 | B158: 37.80005884 | C158: 0.6371 | D158: 179.239916
A159: 32.85 | B159: 37.74252451 | C159: 0.6354 | D159: 179.447741
A160: 32.9 | B160: 37.68516505 | C160: 0.6336 | D160: 179.611783
A161: 32.95 | B161: 37.62797967 | C161: 0.6315 | D161: 179.734342
A162: 33 | B162: 37.57096758 | C162: 0.629 | D162: 179.819214
A163: 33.05 | B163: 37.51412799 | C163: 0.626 | D163: 179.871543
A164: 33.1 | B164: 37.45746012 | C164: 0.6223 | D164: 179.897645
A165: 33.15 | B165: 37.4009632 | C165: 0.6179 | D165: 179.90481
A166: 33.2 | B166: 37.34463645 | C166: 0.6127 | D166: 179.901082
A167: 33.25 | B167: 37.2884791 | C167: 0.6067 | D167: 179.89503
A168: 33.3 | B168: 37.23249039 | C168: 0.5999 | D168: 179.895499
A169: 33.35 | B169: 37.17666957 | C169: 0.5923 | D169: 179.911349
A170: 33.4 | B170: 37.12101587 | C170: 0.5842 | D170: 179.951111
A171: 33.45 | B171: 37.06552855 | C171: 0.5755 | D171: 180.02199
A172: 33.5 | B172: 37.01020687 | C172: 0.5665 | D172: 180.129739
A173: 33.55 | B173: 36.95505007 | C173: 0.5572 | D173: 180.278775
A174: 33.6 | B174: 36.90005744 | C174: 0.548 | D174: 180.471961
A175: 33.65 | B175: 36.84522823 | C175: 0.5388 | D175: 180.71044
A176: 33.7 | B176: 36.79056172 | C176: 0.5299 | D176: 180.993544
A177: 33.75 | B177: 36.73605719 | C177: 0.5215 | D177: 181.318798
A178: 33.8 | B178: 36.68171391 | C178: 0.5136 | D178: 181.682003
A179: 33.85 | B179: 36.62753117 | C179: 0.5064 | D179: 182.07743
A180: 33.9 | B180: 36.57350826 | C180: 0.4999 | D180: 182.498087
A181: 33.95 | B181: 36.51964448 | C181: 0.4942 | D181: 182.936237
A182: 34 | B182: 36.46593912 | C182: 0.4893 | D182: 183.384514
A183: 34.05 | B183: 36.41239148 | C183: 0.4851 | D183: 183.835742
A184: 34.1 | B184: 36.35900088 | C184: 0.4817 | D184: 184.282966
A185: 34.15 | B185: 36.30576662 | C185: 0.4789 | D185: 184.719748
A186: 34.2 | B186: 36.25268801 | C186: 0.4767 | D186: 185.140403
A187: 34.25 | B187: 36.19976438 | C187: 0.4751 | D187: 185.540197
A188: 34.3 | B188: 36.14699504 | C188: 0.4738 | D188: 185.915475
A189: 34.35 | B189: 36.09437933 | C189: 0.4729 | D189: 186.263733
A190: 34.4 | B190: 36.04191657 | C190: 0.4722 | D190: 186.583633
A191: 34.45 | B191: 35.9896061 | C191: 0.4716 | D191: 186.87498
A192: 34.5 | B192: 35.93744725 | C192: 0.471 | D192: 187.138589
A193: 34.55 | B193: 35.88543936 | C193: 0.4703 | D193: 187.375986
A194: 34.6 | B194: 35.83358179 | C194: 0.4695 | D194: 187.589509
A195: 34.65 | B195: =(1.23984193*1000)/A195 -> 35.78187388 | C195: 0.4685 | D195: 187.782259
A196: 34.7 | B196: 35.73031499 | C196: 0.4672 | D196: 187.957957
A197: 34.75 | B197: 35.67890446 | C197: 0.4656 | D197: 188.120787
A198: 34.8 | B198: 35.62764167 | C198: 0.4636 | D198: 188.275241
A199: 34.85 | B199: 35.57652597 | C199: 0.4613 | D199: 188.425962
A200: 34.9 | B200: 35.52555673 | C200: 0.4587 | D200: 188.577598
... 1702 more rows
